Cogmind - Beta 13 @@@ ROGUE MODE // 2024.07.01 @ 00:22:24 Player: Duduxx Result: Destroyed by G-50 Soldier with Heavy Laser Performance ------------- Evolutions (3) 1500 Regions Visited (7) 1400 Robots Destroyed (76) 380 Value Destroyed (2698) 2698 Prototype IDs (2) 40 Alien Tech Used (0) 0 Bonus (286) 286 TOTAL SCORE: 6304 Bonus ------- Follower Combat Kills 209 Entered Garrisons 200 Friendly Fire -123 Cogmind --------- Core Integrity 0/700 Matter 143/300 Energy 0/240 System Corruption 3% Temperature Cool (43) Movement Core (1450) Ox28 Location -7/Garrison Parts ------- > --- POWER (1) -------- Nuclear Core > --- PROPULSION (3) --- (None) > --- UTILITY (7) ------ Huge Storage Unit Advanced Terrain Scan Processor Salvage Targeting Computer Advanced Targeting Computer > --- WEAPON (2) ------- (None) > --- INVENTORY (25) --- Light Quantum Reactor High-capacity Storage Unit Weight Redist. System Target Analyzer Core Analyzer System Shield Mini Assault Cannon Shock Bomb Launcher Improved Datajack Katana Peak State ------------ > --- POWER ------------ Light Antimatter Reactor > --- PROPULSION ------- Medium Treads Aluminum Leg Improved Titanium Leg > --- UTILITY ---------- Huge Storage Unit Advanced Terrain Scan Processor Salvage Targeting Computer Improved Targeting Computer Advanced Targeting Computer Advanced Phase Shifter Core Shielding > --- WEAPON ----------- EM Pulse Cannon KE Penetrator > --- INVENTORY -------- Nuclear Core Nuclear Core Light Quantum Reactor High-capacity Storage Unit Weight Redist. System Target Analyzer Core Analyzer System Shield Gauss Rifle Mini Assault Cannon Shock Bomb Launcher Shock Bomb Launcher Rocket Launcher Improved Datajack Katana [Rating: 52] Favorites ----------- Power Light Nuclear Core Engine Cooled Ion Engine Power Core Light Nuclear Core Reactor Light Antimatter Reactor Propulsion Titanium Leg Treads Light Treads Leg Titanium Leg Utility Advanced Terrain Scan Processor Device Improved Terrain Scanner Storage Huge Storage Unit Processor Advanced Terrain Scan Processor Protection Core Shielding Weapon Heavy Assault Rifle Energy Gun EM Shotgun Energy Cannon EM Pulse Cannon Ballistic Gun Heavy Assault Rifle Launcher Rocket Launcher Special Weapon Mining Laser Slashing Weapon Katana Build | -11 -10 -10 -9 -9 -8 -7 -7 ------- Run | Yrd Mat Min Mat Min Mat Fac Gar Slots Evolved 6 | . . . 2 . 2 2 . Power . | . . . . . . . . Propulsion 1 | . . . . . 1 . . Utility 5 | . . . 2 . 1 2 . Weapon . | . . . . . . . . Parts Attached 115 | 6 3 2 14 5 35 32 18 Power 19 | 1 1 . 2 2 3 4 6 Engine 6 | 1 1 . 2 2 . . . Core 11 | . . . . . 3 4 4 Reactor 2 | . . . . . . . 2 Propulsion 31 | 2 . 1 2 2 13 7 4 Treads 7 | . . . 2 . 2 3 . Leg 24 | 2 . 1 . 2 11 4 4 Wheel . | . . . . . . . . Hover . | . . . . . . . . Flight . | . . . . . . . . Utility 38 | 1 1 1 5 1 13 14 2 Device 13 | . 1 . 1 1 4 5 1 Storage 12 | 1 . 1 3 . 5 2 . Processor 8 | . . . . . 2 5 1 Hackware . | . . . . . . . . Protection 5 | . . . 1 . 2 2 . Artifact . | . . . . . . . . Weapon 27 | 2 1 . 5 . 6 7 6 Energy Gun 8 | 2 1 . 3 . 1 1 . Energy Cannon 2 | . . . . . 1 1 . Ballistic Gun 12 | . . . 1 . 3 5 3 Ballistic Cannon . | . . . . . . . . Launcher 3 | . . . 1 . . . 2 Special Weapon 1 | . . . . . 1 . . Impact Weapon . | . . . . . . . . Slashing Weapon 1 | . . . . . . . 1 Piercing Weapon . | . . . . . . . . Special Melee Weapon . | . . . . . . . . Unidentified Prototypes 2 | . 1 . . . . 1 . Parts Lost 60 | . . 1 6 . 14 24 15 Power 9 | . . . . . 3 3 3 Propulsion 17 | . . 1 1 . 3 7 5 Utility 13 | . . . 1 . 2 7 3 Weapon 21 | . . . 4 . 6 7 4 Highest Loss Streak 12 | . . 1 4 . 3 9 12 To Critical Strikes . | . . . . . . . . Average Slot Usage (%) 95 | . 93 96 91 99 96 96 90 Engine 4 | . 14 14 11 11 2 . . Core 4 | . . . . . 5 6 2 Treads 6 | . . . 8 18 3 5 5 Leg 15 | . 28 24 11 2 21 14 8 Device 11 | . 8 14 11 15 14 9 5 Storage 11 | . 14 14 20 17 9 10 7 Processor 15 | . . . . . 14 24 30 Protection 6 | . . . 4 11 6 6 6 Energy Gun 9 | . 28 28 18 22 3 3 . Energy Cannon 1 | . . . . . 1 . 6 Ballistic Gun 7 | . . . 2 . 11 10 6 Naked Turns . | . . . . . . . . Heaviest Build 137 | 11 19 24 29 32 56 137 107 Greatest Support 54 | 20 20 20 40 40 51 54 34 Greatest Overweight (x) 13 | 3 . 2 2 8 3 13 10 Average Overweight (x) . | . . 1 . . . 1 2 Largest Inventory Capacity 25 | 8 8 10 10 10 25 25 25 Average Capacity 17 | 7 8 9 10 10 16 23 25 Most Carried 20 | 4 8 8 10 10 20 19 16 Average Carried 11 | 1 6 8 7 9 13 13 14 Final Capacity 25 | 8 8 10 10 10 20 25 25 Final Carried 20 | 4 8 8 9 10 20 14 10 Class Distribution -------------------- 57% | Mutant 28% | Skirmisher 10% | Scavenger-Mutant 3% | Scavenger-Skirmisher Dominant Class ---------------- Mutant | -10/Materials Mutant | -10/Mines Mutant | -9/Materials Mutant | -9/Mines Skirmisher | -8/Materials Mutant | -7/Factory Mutant | -7/Garrison Resources | -11 -10 -10 -9 -9 -8 -7 -7 ----------- Run | Yrd Mat Min Mat Min Mat Fac Gar Matter Collected 1825 | 149 30 84 131 164 619 479 169 Remotely . | . . . . . . . . Salvage Created 3075 | . 71 57 241 252 1256 689 509 Parts 159 | . 5 5 14 17 62 37 19 Haulers Intercepted . | . . . . . . . . Recyclers Shooed 3 | . . . . . 1 2 . Parts Field Recycled . | . . . . . . . . Retrieved Matter . | . . . . . . . . Parts Self-Destructed . | . . . . . . . . Prevented . | . . . . . . . . Kills | -11 -10 -10 -9 -9 -8 -7 -7 ------- Run | Yrd Mat Min Mat Min Mat Fac Gar Combat Hostiles Destroyed 67 | . 3 2 6 8 21 17 10 Guns 49 | . . 2 5 7 15 16 4 Cannons 7 | . . . . . 6 1 . AOE 11 | . 3 . 1 1 . . 6 Classes Destroyed 9 | . 2 1 1 2 2 1 . Builder 3 | . . . . 1 2 . . Recycler 2 | . . . . 1 . 1 . Watcher 3 | . 1 . . . 1 1 . Swarmer 22 | . 3 1 . 6 . 8 4 Grunt 27 | . . 1 3 2 10 5 6 Duelist 1 | . . . . . 1 . . Sentry 10 | . . . 3 . 6 1 . Hunter 5 | . . . . . 4 1 . Programmer 2 | . . . . . . 2 . Thug 1 | . . . . . 1 . . Best Kill Streak 7 | . 4 1 3 4 3 7 5 Combat Bots Only 7 | . 3 1 3 4 3 7 5 Max Kills in Single Turn 4 | . 2 1 1 3 1 1 4 Gunslinging 1 | . . . . 1 . . . Exploded 4 | . 2 . 1 1 . . 4 Melee . | . . . . . . . . Uniques/NPCs Destroyed . | . . . . . . . . Combat | -11 -10 -10 -9 -9 -8 -7 -7 -------- Run | Yrd Mat Min Mat Min Mat Fac Gar Hostile Shots Fired 735 | . 6 15 68 18 181 294 153 Missed 213 | . 1 4 30 3 50 75 50 Damage Taken 8185 | . 60 233 600 213 2215 3115 1749 Core 1415 | . 8 38 129 43 493 289 415 Absorbed by Shields 12 | . . . . . . . 12 Redirected to Shielding 50 | . . . . . . 34 16 Core Remaining (%) 62 | 100 . 81 . 57 10 . . Volleys Fired 237 | . 6 4 22 13 92 75 25 Largest 2 | . 2 2 2 2 2 2 2 Hottest 169 | . 85 85 110 110 169 91 96 Shots Fired 427 | . 12 8 44 26 165 132 40 Gun 376 | . 12 8 37 26 141 129 23 Cannon 38 | . . . . . 22 3 13 Launcher 11 | . . . 7 . . . 4 Special 2 | . . . . . 2 . . Kinetic 237 | . . . 10 . 116 88 23 Thermal 70 | . 1 . 7 13 18 31 . Explosive 9 | . . . 7 . . . 2 Electromagnetic 111 | . 11 8 20 13 31 13 15 Robot Hit Streak 11 | . 5 6 8 10 11 9 7 Robot Miss Streak 10 | . 2 3 7 3 6 10 3 Penetration Max 1 | . . . . . . 1 1 Secondary Targets 5 | . . . 1 2 1 1 . Max Gunslinging Chain 1 | . . . 1 1 1 1 . Shots Hit Robots 279 | . 9 6 24 17 101 89 33 Core Hits 155 | . 4 3 17 14 49 49 19 Critical Kills 1 | . . . . . . . 1 Critical Parts Destroyed 2 | . . . . . . 2 . Critical Strikes 6 | . . . 1 . . 4 1 Burn 3 | . . . 1 . . 2 . Destroy 3 | . . . . . . 2 1 Melee Attacks 2 | . . . . . . . 2 Impact . | . . . . . . . . Slashing 2 | . . . . . . . 2 Piercing . | . . . . . . . . Sneak Attacks . | . . . . . . . . Combat Hostiles . | . . . . . . . . Follow-up Attacks . | . . . . . . . . Damage Inflicted 6188 | . 284 91 431 401 1918 1758 1305 Guns 4336 | . 125 85 294 272 1479 1702 379 Cannons 684 | . . . . . 398 20 266 Explosions 918 | . 149 . 137 96 . . 536 Melee 124 | . . . . . . . 124 Ramming 126 | . 10 6 . 33 41 36 . Kinetic 3029 | . . . 65 . 1262 1323 379 Thermal 978 | . 149 . 96 194 110 288 141 Explosive 285 | . . . 137 . . . 148 Electromagnetic 1646 | . 125 85 133 174 505 111 513 Impact . | . . . . . . . . Slashing 124 | . . . . . . . 124 Piercing . | . . . . . . . . Highest Corruption 3 | . . . . . . 3 3 Average Corruption 2 | . . . . . . 2 3 Corruption Purged . | . . . . . . . . Corruption Blocked . | . . . . . . . . Effects 24 | . . . . . . 10 14 Message Errors 3 | . . . . . . 1 2 Matter Fused 6 | . . . . . . 2 4 Heat Flow Errors 2 | . . . . . . 1 1 Energy Discharges 1 | . . . . . . . 1 Parts Rejected 1 | . . . . . . . 1 Parts Fused 1 | . . . . . . 1 . Data Loss (minor) 5 | . . . . . . 3 2 Data Loss (major) 1 | . . . . . . 1 . Misfires 1 | . . . . . . . 1 Alerts 3 | . . . . . . 1 2 Overload Shots . | . . . . . . . . Overflow Damage 74 | . 17 . 21 . . . 36 Projectiles . | . . . . . . . . Explosions 74 | . 17 . 21 . . . 36 Melee . | . . . . . . . . Knockbacks 2 | . . . . 1 . 1 . Impact 2 | . . . . 1 . 1 . Kinetic . | . . . . . . . . Secondary . | . . . . . . . . Self-Inflicted Damage 221 | . 16 . 63 45 . . 97 Shots 8 | . 1 . 2 1 . . 4 Rammed 6 | . . . . 4 1 1 . Targets Rammed 25 | . 3 3 . 6 8 5 . Kicked 17 | . 3 3 . . 7 4 . Crushed 2 | . . . . 2 . . . Highest Temperature 603 | . 66 48 158 405 603 433 246 Average Temperature 137 | . 25 21 37 159 201 147 71 Received Heat Transfer 2358 | . . 18 201 57 702 552 828 Effects 24 | . . . . 3 15 6 . Shutdowns 7 | . . . . . 4 3 . Energy Bleed 2 | . . . . . 2 . . Interference 9 | . . . . 2 5 2 . Matter Decay 2 | . . . . 1 1 . . Short Circuit 3 | . . . . . 2 1 . Damage (core) 1 | . . . . . 1 . . Siege Activations . | . . . . . . . . Robots Corrupted . | . . . . . . . . Combat Hostiles . | . . . . . . . . Parts Fried 7 | . 2 . 1 . 3 . 1 Impact Corruptions . | . . . . . . . . Robots Melted . | . . . . . . . . Combat Hostiles . | . . . . . . . . Parts Melted 2 | . . . . . 1 . 1 Heat Transferred 1954 | . 150 . 296 272 259 777 200 Parts Sabotaged . | . . . . . . . . Parts Stolen . | . . . . . . . . Parts Stripped . | . . . . . . . . Power Chain Reactions 5 | . 2 . . 1 . . 2 Alert | -11 -10 -10 -9 -9 -8 -7 -7 ------- Run | Yrd Mat Min Mat Min Mat Fac Gar Peak Influence 331 | . 174 254 331 296 226 225 176 Initial 129 | . . 67 98 129 84 64 62 Average 130 | . 69 137 220 200 142 105 82 Maximum Alert Level 1 | . . 1 1 1 1 1 . Low Security (%) 82 | 100 100 65 47 48 85 92 100 Level 1 17 | . . 34 52 51 14 7 . Level 2 . | . . . . . . . . Level 3 . | . . . . . . . . Level 4 . | . . . . . . . . Level 5 . | . . . . . . . . High Security . | . . . . . . . . Max Security . | . . . . . . . . Squads Dispatched 10 | . . 1 2 1 2 4 . Investigation 4 | . . 1 . 1 . 2 . Extermination 2 | . . . . . . 2 . Reinforcement 4 | . . . 2 . 2 . . Assault . | . . . . . . . . Garrison . | . . . . . . . . Intercept . | . . . . . . . . Searches Triggered . | . . . . . . . . Construction Impeded 2 | . . . 1 . 1 . . Haulers Reinforced . | . . . . . . . . Active Scanning Responses . | . . . . . . . . Cargo Convoy Interrupts . | . . . . . . . . Stealth | -11 -10 -10 -9 -9 -8 -7 -7 --------- Run | Yrd Mat Min Mat Min Mat Fac Gar Distress Signals 5 | . 1 . . . 1 3 . Communications Jammed . | . . . . . . . . Distress Signals . | . . . . . . . . Times Spotted 108 | . 7 7 7 10 28 30 19 Peak Tracking Total 11 | . 4 3 4 4 4 11 11 Tactical Retreats 6 | . . . . 1 1 4 . Traps | -11 -10 -10 -9 -9 -8 -7 -7 ------- Run | Yrd Mat Min Mat Min Mat Fac Gar Traps Triggered 2 | . . . . . . . 2 Indirectly . | . . . . . . . . Trap Hack Attempts . | . . . . . . . . Triggered . | . . . . . . . . Disarmed . | . . . . . . . . Reprogrammed . | . . . . . . . . Reused . | . . . . . . . . Traps Extracted . | . . . . . . . . Installed . | . . . . . . . . Triggered . | . . . . . . . . Machines | -11 -10 -10 -9 -9 -8 -7 -7 ---------- Run | Yrd Mat Min Mat Min Mat Fac Gar Machines Disabled 8 | . 2 1 3 . . 1 1 Max in Single Turn 2 | . 2 1 2 . . 1 1 Machines Repaired . | . . . . . . . . Machines Dismantled . | . . . . . . . . Machines Sabotaged . | . . . . . . . . Overloaded Fab Kills . | . . . . . . . . Hacking | -11 -10 -10 -9 -9 -8 -7 -7 --------- Run | Yrd Mat Min Mat Min Mat Fac Gar Machines Accessed 11 | . 4 1 . 1 2 3 . Terminals 7 | . 4 1 . . 1 1 . Fabricators . | . . . . . . . . Repair Stations 1 | . . . . . . 1 . Recycling Units 1 | . . . . . 1 . . Scanalyzers . | . . . . . . . . Garrison Access 1 | . . . . . . 1 . Total Hacks 25 | . 10 3 . 1 5 6 . Successful 11 | . 5 1 . 1 2 2 . Failed 14 | . 5 2 . . 3 4 . Catastrophic 6 | . 3 1 . . 1 1 . Database Lockouts . | . . . . . . . . Manual 6 | . 2 3 . . 1 . . Terminals 16 | . 10 3 . . 1 2 . Fabricators . | . . . . . . . . Repair Stations 3 | . . . . . . 3 . Recycling Units 4 | . . . . . 4 . . Scanalyzers . | . . . . . . . . Garrison Access 1 | . . . . . . 1 . Terminal Hacks 7 | . 5 1 . 1 . . . Record 1 | . 1 . . . . . . Robot Analysis 1 | . 1 . . . . . . Open Door 1 | . . . . 1 . . . Assault Status 1 | . 1 . . . . . . Garrison Status 1 | . . 1 . . . . . Registered Components 1 | . 1 . . . . . . Zone Layout 1 | . 1 . . . . . . Fabricator Hacks . | . . . . . . . . Repair Station Hacks 1 | . . . . . . 1 . Scan Component 1 | . . . . . . 1 . Recycling Unit Hacks 2 | . . . . . 2 . . Report Inventory 1 | . . . . . 1 . . Retrieve Matter 1 | . . . . . 1 . . Scanalyzer . | . . . . . . . . Garrison Access Hacks 1 | . . . . . . 1 . Unlock Access 1 | . . . . . . 1 . Unauthorized Hacks . | . . . . . . . . Terminals . | . . . . . . . . Fabricators . | . . . . . . . . Repair Stations . | . . . . . . . . Recycling Units . | . . . . . . . . Scanalyzers . | . . . . . . . . Garrison Access . | . . . . . . . . Data Cores Recovered . | . . . . . . . . Used . | . . . . . . . . Hacking Detections 8 | . 4 1 . . 1 2 . Full Trace Events 6 | . 3 1 . . . 2 . Feedback Events . | . . . . . . . . Feedback Blocked . | . . . . . . . . Robot Schematics Acquired . | . . . . . . . . Robots Built . | . . . . . . . . Authchips . | . . . . . . . . Time . | . . . . . . . . Total Robot Build Rating . | . . . . . . . . Part Schematics Acquired . | . . . . . . . . Parts Built . | . . . . . . . . Authchips . | . . . . . . . . Time . | . . . . . . . . Total Part Build Rating . | . . . . . . . . Parts Repaired . | . . . . . . . . Time . | . . . . . . . . Parts Recycled . | . . . . . . . . Recycled Matter . | . . . . . . . . Retrieved Matter 156 | . . . . . 156 . . Retrieved Components . | . . . . . . . . Parts Scanalyzed . | . . . . . . . . Part Schematics Acquired . | . . . . . . . . Parts Damaged . | . . . . . . . . Bothacking | -11 -10 -10 -9 -9 -8 -7 -7 ------------ Run | Yrd Mat Min Mat Min Mat Fac Gar Used RIF Installer . | . . . . . . . . Robots Hacked . | . . . . . . . . Non-combat . | . . . . . . . . Combat . | . . . . . . . . Robot Hacks Applied . | . . . . . . . . Relay Couplers Released . | . . . . . . . . Fabnet Peak Effective % . | . . . . . . . . Robots Rewired . | . . . . . . . . Allies Hacked . | . . . . . . . . Hacks Repelled . | . . . . . . . . Allies | -11 -10 -10 -9 -9 -8 -7 -7 -------- Run | Yrd Mat Min Mat Min Mat Fac Gar Total Allies 5 | . . 3 . 2 . . . Largest Group 3 | . . 3 2 2 1 . . Highest-Rated Group 40 | . . 40 32 39 31 . . Highest-Rated Ally 31 | . . 16 16 31 31 . . Total Orders . | . . . . . . . . Ally Attacks 46 | . . 19 9 2 16 . . Total Damage 594 | . . 231 113 20 230 . . Kills 10 | . . 5 2 1 2 . . Allies Corrupted . | . . . . . . . . Allies Melted . | . . . . . . . . Intel | -11 -10 -10 -9 -9 -8 -7 -7 ------- Run | Yrd Mat Min Mat Min Mat Fac Gar Robot Analysis Total 1 | . 1 . . . . . . Derelict Logs Recovered 2 | . . 2 . . . . . Drone Launches . | . . . . . . . . Drone Recoveries . | . . . . . . . . Exploration | -11 -10 -10 -9 -9 -8 -7 -7 ------------- Run | Yrd Mat Min Mat Min Mat Fac Gar Turns Passed 5719 | 68 345 307 355 701 1652 1591 700 Spaces Moved 2290 | 47 256 144 149 379 673 485 157 Core 17 | 13 . . . 4 . . . Treads 780 | . . . 72 329 69 173 137 Legs 1493 | 34 256 144 77 46 604 312 20 Wheels . | . . . . . . . . Hover . | . . . . . . . . Flight . | . . . . . . . . Fastest Speed 50 | 50 120 120 160 120 120 200 320 Average Speed 206 | 117 120 198 178 165 189 270 378 Slowest Speed 1030 | 200 120 260 260 450 330 1030 820 Overloaded Moves . | . . . . . . . . Propulsion Burnouts . | . . . . . . . . Robots Hopped . | . . . . . . . . Cave-ins Triggered . | . . . . . . . . Exploration Rate (%) 28 | 3 34 28 12 70 50 10 23 Regions Visited 7 Branch Regions 2 Pre-discovered Areas . | . . . . . . . . Known Exits Taken 2 | . . . 1 . . 1 . Unknown Exits Taken 5 | 1 1 1 . 1 1 . . Scrap Searched . | . . . . . . . . Spaces Dug . | . . . . . . . . Terrain Destroyed 78 | . . . 50 11 3 . 14 Melee . | . . . . . . . . Projectile 3 | . . . . . 3 . . AOE 75 | . . . 50 11 . . 14 Terrain Rammed . | . . . . . . . . Walls Destroyed . | . . . . . . . . Machines Disabled . | . . . . . . . . Actions | -11 -10 -10 -9 -9 -8 -7 -7 --------- Run | Yrd Mat Min Mat Min Mat Fac Gar Total 2826 | 56 283 153 194 425 873 622 220 Wait 29 | . . . . 9 16 1 3 Move 2283 | 46 255 143 148 378 672 484 157 Hop . | . . . . . . . . Pick Up 72 | 4 8 . 6 5 29 17 3 Fast Attach 39 | 6 3 1 4 3 8 8 6 Attach 51 | . . . 7 1 15 21 7 Detach 18 | . 2 . 3 1 4 4 4 Swap 25 | . . 1 3 1 12 3 5 Drop 41 | . 6 1 1 8 17 4 4 Fire 237 | . 6 4 22 13 92 75 25 Melee 2 | . . . . . . . 2 Ram . | . . . . . . . . Kick 17 | . 3 3 . . 7 4 . Crush 8 | . . . . 6 1 1 . Escape Stasis 4 | . . . . . . . 4 Rewire . | . . . . . . . . Trap . | . . . . . . . . Miscellaneous . | . . . . . . . . Route ------- -11/Scrapyard -10/Materials -10/Mines -9/Materials -9/Mines -8/Materials (discovered 3 exits: *Fac x2 / [*Sto]) -7/Factory -7/Garrison History --------- Turn | Location | Event 22 | -11/Scrapyard | Discovered new exit (range 16) 69 | -11/Scrapyard | Entered Materials 307 | -10/Materials | Build established: Mutant 375 | -10/Materials | Discovered new exit (range 11) 414 | -10/Materials | Entered Mines 467 | -10/Mines | Assisted by bots powering up and referring to "LRC-V3" 471 | -10/Mines | Learned Materials emergency access door positions 562 | -10/Mines | Learned location of 1 exit from Materials 577 | -10/Mines | Discovered new exit (range 10) 585 | -10/Mines | Assembled infested the area 721 | -10/Mines | Entered Materials 721 | -9/Materials | Accompanied by 2 allies 721 | -9/Materials | Evolved 2 slots: Utility x2 722 | -9/Materials | Identified exit to Mines 940 | -9/Materials | Lost 4 parts (1n1u2w) 1076 | -9/Materials | Entered Mines 1396 | -9/Mines | Met a Derelict shopkeep closing up shop 1739 | -9/Mines | Discovered new exit (range 14) 1777 | -9/Mines | Entered Materials 1777 | -8/Materials | Accompanied by 1 ally 1777 | -8/Materials | Evolved 2 slots: Propulsion x1, Utility x1 1782 | -8/Materials | Led the pair of lost Derelicts to an unsafe place 2326 | -8/Materials | Core integrity fell below 50% 2358 | -8/Materials | Lost 3 parts (1n1u1w) 2537 | -8/Materials | Discovered new exit (range 9) 2581 | -8/Materials | Discovered new exit (range 15) 2725 | -8/Materials | Lost 3 parts (1p1u1w) 2811 | -8/Materials | Core integrity fell below 20% 3078 | -8/Materials | Discovered new exit (range 18) 3150 | -8/Materials | Build established: Skirmisher 3429 | -8/Materials | Entered Factory 3429 | -7/Factory | Evolved 2 slots: Utility x2 3905 | -7/Factory | Lost 9 parts (1p2n5u1w) 3906 | -7/Factory | Destroyed 7 combat bots 4171 | -7/Factory | Lost 6 parts (1p2n3w) 4394 | -7/Factory | Build established: Scavenger-Mutant 4416 | -7/Factory | Lost 4 parts (1p2n1w) 4746 | -7/Factory | Build established: Mutant 4849 | -7/Factory | Lost 3 parts (1n1u1w) 5017 | -7/Factory | Identified exit to Garrison 5020 | -7/Factory | Entered Garrison 5092 | -7/Garrison | Heavy support dispatched to Factory 5094 | -7/Garrison | Triggered checkpoint 5163 | -7/Garrison | Heavy support dispatched to Factory 5511 | -7/Garrison | Heavy support dispatched to Factory 5590 | -7/Garrison | Core integrity fell below 50% 5614 | -7/Garrison | Lost 3 parts (1p2n) 5662 | -7/Garrison | Triggered checkpoint 5699 | -7/Garrison | Triggered checkpoint 5715 | -7/Garrison | Core integrity fell below 20% 5720 | -7/Garrison | Destroyed by G-50 Soldier with Heavy Laser Last Messages --------------- 05704_ Lgt. Nuclear Core destroyed. 05705_ Aluminum Leg destroyed. 05710_ Gauss Rifle destroyed. 05711_ G-47 Trooper suffers critical hit (Destroy). 05711_ G-47 Trooper destroyed. 05712_ ,7XQA/PDAKTWIX HHSILQMZ CLCAV>SFYKZRSV 05712_ Aluminum Leg destroyed. 05714_ Imp. Targeting Computer destroyed. 05715_ S-27 Virus destroyed. 05715_ G-50 Soldier destroyed. 05716_ Critical hit (Burn: +37). 05718_ Destroyed Imp. Heat Sink. 05718_ S-27 Virus destroyed. 05718_ Chain reaction triggered in Corrupted Lgt. Nuclear Core. 05718_ Nuclear Core destroyed. 05718_ Destroyed Nuclear Core. 05718_ Shock Bomb Launcher destroyed. 05718_ Destroyed Shock Bomb Launcher. Map ----- +----------------------------------------------------+ | ?????????????????????????????????????????????????? | | ?????????????????????????????????????????????????? | | ?????????????????????????????????????????????????? | | ?????????????????????????????????????????????????? | | ?????????????????????????????????????????????????? | | ?????????????????????????????????????????????????? | | ?????????????????????????????????????????????????? | | ?????????????????????????????????????????????????? | | ??????????????????????? ????????????????????????? | | ??????????????????????? ????????????????????????? | | ??????????????????????? ????????????????????????? | | ??????????????????????# ????????????????????????? | | ????????????????????###;###??""###???????????????? | | ???????????????????? ??? ??##???????????? | | ????????????????????? ?? ? ???????????? | | ????????????????????? ?? ? ???????????? | | ?????????????????????# #? #? #????????????? | | ???????????????????### ## ## ###??????????? | | ???????????????????# C#??????????? | | ???????????????????# ?#??????????? | | ???????????????????# = #??????????? | | ???????????????????? =% % C#??????????? | | ?????????????????????# ## =%# g ##???????????? | | ?????????????????????#= ;;[gg ###?????????? | | #????????????????????# *[ % %= ???????? | | #????????????????????# % @%[ g ???????? | | #############????????# % = g ###??????????? | | #????????#;[ # # ##????????????? | | ##### ### #????????#; # #??##?????????????? | | ????# #?# #????????#; ^#######?????????????????? | | ????#####?# #????? # #???????????????????????? | | ??????????# #???# ##### #???????????????????????? | | ??????????# #?????????# #???????????????????????? | | ??????????# #?????????# #???????????????????????? | | ???????#### ########### #???????????????????????? | | ???????# ^ #???????????????????????? | | ???????# #???????????????????????? | | ???????# ################???????????????????????? | | ???????# #??????????????????????????????????????? | | ???????# #??????????????????????????????????????? | | ???????# #??????????????????????????????????????? | | ???????# #??????????????????????????????????????? | | ???????# #??????????????????????????????????????? | | ???????# #??????????????????????????????????????? | | ?????### #??????????????????????????????????????? | | ?????# #??????????????????????????????????????? | | ?????# #??????????????????????????????????????? | | ?????# #??????????????????????????????????????? | | ?????######??????????????????????????????????????? | | ?????????????????????????????????????????????????? | +----------------------------------------------------+ Best States ------------- Heat Dissipation 34 Energy Generation 25 Energy Capacity 380 Matter Stores 300 Matter Capacity 300 Sight Range 18 Robot Scan Range 15 Terrain Scan Range 16 Terrain Scan Density 210 Additional Mass Support 6 Armor Coverage 375 Core Shielding 20 Phase Shifting 15 Evasion (%) 59 Targeting Accuracy 19 Recoil Reduction 2 Energy Filtering 30 Salvage Targeting 1 Item Schematics ----------------- None Robot Schematics ------------------ None Fabricated ------------ Nothing Alien Tech Used ----------------- None Achievements -------------- Omniscient Cartographer Challenges ------------ None Game ------ Seed PhysicsMicroMagmablaster Manual? 0 Play Time 00:47:09 Cumulative 14.5 hours Start 2024.06.30 @ 23:35:30 End 2024.07.01 @ 00:22:24 Sessions 1 Manual Loads 0 Difficulty Rogue Special Mode None Game No. 35 Rogue 35 Adventurer 0 Explorer 0 Win Type - Total 0 Types 0/0/0/0/0/0/0/0/0 Lore% 17 Gallery% 21 Achievement% 17 Wizard Run 0 Options --------- Layout 1 ASCII 0 Keyboard 1 Movement Arrows Keybinds 0 Fullscreen 1 Font 24/Smallcaps Map View 50x35 Zoom Use 0% Tactical HUD 1 Map Filters NONE Filters NONE Steam 1 RUN: 49590f4b-e7e0-43a1-8db6-42956a51255c